fUST/lending_fUST_20241001
["ID","MTS","AMOUNT","RATE_DAILY","PERIOD"]
[339591407,1727722079509,-2252.379154,0.00013668,2]
[339591408,1727722079532,-2601.492106,0.00013668,2]
[339591409,1727722079555,-2601.492106,0.00013668,2]
[339591410,1727722079578,-654.000408,0.00013668,2]
[339591411,1727722079601,-654.000408,0.00013668,2]
[339591412,1727722079626,-151.0,0.00013668,2]
[339591413,1727722079650,-1636.675814,0.00013668,2]
[339591414,1727722079672,-665.791252,0.00013668,2]
[339591415,1727722079695,-151.0,0.00013668,2]
[339591416,1727722079717,-665.791252,0.00013668,2]
[339591417,1727722079740,-1636.675814,0.00013668,2]
[339591418,1727722079764,-151.0,0.00013668,2]
[339591419,1727722079786,-277.721418,0.00013668,2]
[339591420,1727722079810,-277.721418,0.00013668,2]
[339591421,1727722079833,-151.0,0.00013668,2]
[339591422,1727722079856,-304.144973,0.00013668,2]
[339591423,1727722079880,-304.144973,0.00013668,2]
[339591424,1727722079903,-304.144973,0.00013668,2]
[339591425,1727722079926,-304.144973,0.00013668,2]
[339591426,1727722079948,-242.716183,0.00013668,2]
[339591427,1727722079972,-242.716183,0.00013668,2]
[339591428,1727722079996,-1543.065657,0.00013668,2]
[339591429,1727722080019,-1543.065657,0.00013668,2]
[339591430,1727722080043,-2632.734754,0.00013668,2]
[339591431,1727722080114,-56068.466292,0.00013668,2]
[339591432,1727722080139,-22451.0053694,0.00013668,2]
[339591433,1727722080164,-168205.398876,0.00013669,2]
[339591434,1727722080189,-67353.0161082,0.00013669,2]
[339591435,1727722080212,-500.0,0.00013673,2]
[339591436,1727722080237,-500.0,0.00013673,2]
[339591437,1727722080261,-501.82860116,0.00013673,2]
[339591438,1727722080285,-500.0,0.00013673,2]
[339591439,1727722080307,-500.0,0.00013673,2]
[339591440,1727722080331,-500.0,0.00013673,2]
[339591441,1727722080357,-501.57733193,0.00013673,2]
[339591442,1727722080382,-500.25474327,0.00013673,2]
[339591443,1727722080407,-500.0,0.00013673,2]
[339591444,1727722080431,-500.0,0.00013673,2]
[339591445,1727722080456,-500.0,0.00013673,2]
[339591446,1727722080479,-500.0,0.00013673,2]
[339591447,1727722080503,-500.0,0.00013673,2]
[339591448,1727722080525,-500.0,0.00013673,2]
[339591449,1727722080548,-500.33226495,0.00013673,2]
[339591450,1727722080571,-500.0,0.00013673,2]
[339591451,1727722080595,-287.54060392,0.00013673,2]
[339591452,1727722080624,-500.0,0.00013673,2]
[339591453,1727722080647,-502.66891151,0.00013673,2]
[339591454,1727722080670,-500.0,0.00013673,2]
[339591455,1727722080693,-500.04668334,0.00013673,2]
[339591456,1727722080715,-500.0,0.00013673,2]
[339591457,1727722080737,-500.0,0.00013673,2]
[339591458,1727722080761,-500.0,0.00013673,2]
[339591459,1727722080784,-500.0,0.00013673,2]
[339591460,1727722080806,-171.66163117,0.00013673,2]
[339591461,1727722080828,-500.0,0.00013673,2]
[339591462,1727722080850,-600.0,0.00013676,2]
[339591463,1727722080875,-173.0,0.00013677,2]
[339591464,1727722080902,-44902.0107388,0.00013678,2]
[339591465,1727722080925,-260.407373,0.00013679,2]
[339591466,1727722080948,-508.531592,0.00013679,2]
[339591467,1727722080971,-508.531592,0.00013679,2]
[339591468,1727722080994,-270.855815,0.00013679,2]
[339591469,1727722081018,-151.0,0.00013679,2]
[339591470,1727722081041,-270.855815,0.00013679,2]
[339591471,1727722081065,-151.0,0.00013679,2]
[339591472,1727722081090,-346.314248,0.00013679,2]
[339591473,1727722081115,-710.212639,0.00013679,2]
[339591474,1727722081138,-346.314248,0.00013679,2]
[339591475,1727722081162,-151.0,0.00013679,2]
[339591476,1727722081186,-1155.30839,0.00013679,2]
[339591477,1727722081210,-1155.30839,0.00013679,2]
[339591478,1727722081234,-475.243284,0.00013679,2]
[339591479,1727722081258,-475.243284,0.00013679,2]
[339591480,1727722081283,-2206.037437,0.00013679,2]
[339591481,1727722081310,-1585.91749,0.00013679,2]
[339591482,1727722081333,-1585.91749,0.00013679,2]
[339591483,1727722081360,-5208.518324,0.00013679,2]
[339591484,1727722081383,-5208.518324,0.00013679,2]
[339591485,1727722081406,-151.0,0.00013679,2]
[339591486,1727722081428,-151.0,0.00013679,2]
[339591487,1727722081451,-151.0,0.00013679,2]
[339591488,1727722081477,-151.0,0.00013679,2]
[339591489,1727722081501,-204.39348,0.00013679,2]
[339591490,1727722081525,-204.39348,0.00013679,2]
[339591491,1727722081548,-151.0,0.00013679,2]
[339591492,1727722081572,-151.0,0.00013679,2]
[339591493,1727722081597,-151.0,0.00013679,2]
[339591494,1727722081621,-527.982006,0.00013679,2]
[339591495,1727722081646,-527.982006,0.00013679,2]
[339591496,1727722081672,-151.0,0.00013679,2]
[339591497,1727722081697,-424.011732,0.00013679,2]
[339591498,1727722081722,-350.486018,0.00013679,2]
[339591499,1727722081748,-424.011732,0.00013679,2]
[339591500,1727722081772,-350.486018,0.00013679,2]
[339591501,1727722081798,-238.350069,0.00013679,2]
[339591502,1727722081822,-167.126911,0.00013679,2]
[339591503,1727722081847,-238.350069,0.00013679,2]
[339591504,1727722081870,-167.126911,0.00013679,2]
[339591505,1727722081897,-2252.379154,0.00013679,2]
[339591506,1727722081923,-2252.379154,0.00013679,2]
[339591507,1727722081948,-2601.492106,0.00013679,2]
[339591508,1727722081972,-2601.492106,0.00013679,2]
[339591509,1727722081997,-654.000408,0.00013679,2]
[339591510,1727722082021,-654.000408,0.00013679,2]
[339591511,1727722082046,-151.0,0.00013679,2]
[339591512,1727722082070,-1636.675814,0.00013679,2]
[339591513,1727722082093,-665.791252,0.00013679,2]
[339591514,1727722082120,-151.0,0.00013679,2]
[339591515,1727722082143,-1636.675814,0.00013679,2]
[339591516,1727722082167,-665.791252,0.00013679,2]
[339591517,1727722082191,-151.0,0.00013679,2]
[339591518,1727722082214,-277.721418,0.00013679,2]
[339591519,1727722082238,-277.721418,0.00013679,2]
[339591520,1727722082262,-151.0,0.00013679,2]
[339591521,1727722082287,-304.144973,0.00013679,2]
[339591522,1727722082311,-304.144973,0.00013679,2]
[339591523,1727722082334,-304.144973,0.00013679,2]
[339591524,1727722082358,-304.144973,0.00013679,2]
[339591525,1727722082381,-242.716183,0.00013679,2]
[339591526,1727722082405,-242.716183,0.00013679,2]
[339591527,1727722082430,-1543.065657,0.00013679,2]
[339591528,1727722082454,-1543.065657,0.00013679,2]
[339591529,1727722082477,-2632.734754,0.00013679,2]
[339591530,1727722082500,-22451.0053694,0.00013679,2]
[339591531,1727722082524,-82850.01233084,0.00013687,2]
[339591532,1727722085529,500.0,0.00021999,120]
[339591533,1727722087580,500.0,0.00021999,120]
[339591534,1727722089254,500.0,0.00021999,120]
[339591535,1727722093531,500.0,0.00021999,120]
[339591536,1727722097299,500.0,0.00021999,120]
[339591538,1727722101141,596.27,0.00021999,120]
[339591539,1727722101839,500.0,0.00021999,120]
[339591540,1727722103879,500.0,0.00021999,120]
[339591541,1727722112854,500.0,0.00021999,120]
[339591542,1727722118345,500.0,0.00021999,120]
[339591543,1727722120823,-786.59536117,0.00011992,2]
[339591544,1727722120848,-500.0,0.00013068,2]
[339591545,1727722120872,-2632.734754,0.00013668,2]
[339591546,1727722120899,-2624.788593,0.00013668,2]
[339591547,1727722120922,-2624.788593,0.00013668,2]
[339591548,1727722120945,-502.87996593,0.00013673,2]
[339591549,1727722120969,-500.0,0.00013673,2]
[339591550,1727722120993,-500.0,0.00013673,2]
[339591551,1727722121016,-500.0,0.00013673,2]
[339591552,1727722121039,-125932.933628,0.00013678,2]
[339591553,1727722121063,-62145.2589871,0.00013678,2]
[339591554,1727722121086,-2632.734754,0.00013679,2]
[339591555,1727722121110,-2624.788593,0.00013679,2]
[339591556,1727722121134,-2624.788593,0.00013679,2]
[339591557,1727722121159,-62966.4668141,0.00013679,2]
[339591558,1727722121184,-31072.6294936,0.00013679,2]
[339591559,1727722121209,-51342.6118701,0.00013687,2]
[339591560,1727722123094,500.0,0.00021999,120]
[339591564,1727722127652,500.0,0.00021999,120]
[339591565,1727722130110,500.0,0.00021999,120]
[339591566,1727722132488,500.0,0.00021999,120]
[339591567,1727722133145,500.0,0.00021999,120]
[339591568,1727722133581,500.0,0.00021999,120]
[339591569,1727722134637,500.0,0.00021999,120]
[339591570,1727722136595,500.0,0.00021999,120]
[339591571,1727722138707,500.0,0.00021999,120]
[339591572,1727722140509,500.0,0.00021999,120]
[339591573,1727722140670,500.0,0.00021999,120]
[339591574,1727722141235,500.0,0.00021999,120]
[339591575,1727722143368,836.35,0.00021999,120]
[339591576,1727722144683,500.0,0.00021999,120]
[339591577,1727722144771,500.0,0.00021999,120]
[339591578,1727722145633,500.0,0.00021999,120]
[339591579,1727722147054,500.0,0.00021999,120]
[339591580,1727722148170,500.0,0.00021999,120]
[339591581,1727722148478,500.0,0.00021999,120]
[339591584,1727722151166,500.0,0.00021999,120]
[339591585,1727722155299,500.0,0.00021999,120]
[339591586,1727722156633,377.49941226,0.00021999,120]
[339591587,1727722157187,500.0,0.00021999,120]
[339591588,1727722158673,500.0,0.00021999,120]
[339591589,1727722161474,500.0,0.00021999,120]
[339591590,1727722165501,500.0,0.00021999,120]
[339591591,1727722169518,500.0,0.00021999,120]
[339591592,1727722170653,500.0,0.00021999,120]
[339591593,1727722171252,500.0,0.00021999,120]
[339591594,1727722173689,500.0,0.00021999,120]
[339591598,1727722175900,500.0,0.00021999,120]
[339591599,1727722178333,500.0,0.00021999,120]
[339591600,1727722178722,500.0,0.00021999,120]
[339591601,1727722178909,500.0,0.00021999,120]
[339591602,1727722179719,500.0,0.00021999,120]
[339591603,1727722180101,689.7,0.00021999,120]
[339591604,1727722182228,500.0,0.00021999,120]
[339591605,1727722183756,500.0,0.00021999,120]
[339591606,1727722185261,500.0,0.00021999,120]
[339591607,1727722186682,500.0,0.00021999,120]
[339591608,1727722187148,500.0,0.00021999,120]
[339591609,1727722187348,500.0,0.00021999,120]
[339591610,1727722187775,500.0,0.00021999,120]
[339591612,1727722189185,500.0,0.00021999,120]
[339591613,1727722190617,500.0,0.00021999,120]
[339591614,1727722191245,500.0,0.00021999,120]
[339591615,1727722191311,500.0,0.00021999,120]
[339591616,1727722191716,500.0,0.00021999,120]
[339591617,1727722192528,500.0,0.00021999,120]
[339591618,1727722194531,500.0,0.00021999,120]
[339591619,1727722196548,1363.01,0.00021999,120]
[339591620,1727722196816,500.0,0.00021999,120]
[339591621,1727722198606,500.0,0.00021999,120]
[339591624,1727722201579,1170.31,0.00021999,120]
[339591625,1727722202312,500.0,0.00021999,120]
[339591626,1727722202820,500.0,0.00021999,120]
[339591627,1727722203121,225.05199254,0.00021999,120]
[339591628,1727722203831,500.0,0.00021999,120]
[339591629,1727722203922,574.40951031,0.00021999,120]
[339591630,1727722206909,500.0,0.00021999,120]
[339591631,1727722207837,500.0,0.00021999,120]
[339591632,1727722210928,500.0,0.00021999,120]
[339591633,1727722213757,500.0,0.00021999,120]
[339591634,1727722216488,574.47,0.00021999,120]
[339591635,1727722218245,500.0,0.00021999,120]
[339591636,1727722221937,500.0,0.00021999,120]
[339591637,1727722224310,500.0,0.00021999,120]
[339591638,1727722224556,500.0,0.00021999,120]
[339591639,1727722227540,500.0,0.00021999,120]
[339591640,1727722230425,500.0,0.00021999,120]
[339591661,1727722231753,543.3063164,0.00021999,120]
[339591662,1727722231767,-150.061,0.00013565,2]
[339591663,1727722231777,-875.07706818,0.00013568,2]
[339591665,1727722232217,500.0,0.00021999,120]
[339591666,1727722232320,500.0,0.00021999,120]
[339591676,1727722237909,-2699.90063457,0.00013568,2]
[339591691,1727722239774,-2283.36147408,0.00013568,2]
[339591700,1727722239849,500.0,0.00021999,120]
[339591711,1727722239948,-2315.6033607,0.00013568,2]
[339591713,1727722239959,-300.0,0.00013667,2]
[339591715,1727722239969,-1040.13285676,0.00013668,2]
[339591718,1727722239979,-194.401146,0.00013668,2]
[339591720,1727722239989,-2624.788593,0.00013668,2]
[339591722,1727722239998,-2624.788593,0.00013668,2]
[339591724,1727722240008,-981.025012,0.00013668,2]
[339591726,1727722240017,-981.025012,0.00013668,2]
[339591728,1727722240026,-339.209386,0.00013668,2]
[339591730,1727722240036,-339.209386,0.00013668,2]
[339591732,1727722240046,-339.209386,0.00013668,2]
[339591734,1727722240056,-339.209386,0.00013668,2]
[339591736,1727722240065,-151.0,0.00013668,2]
[339591738,1727722240074,-151.0,0.00013668,2]
[339591740,1727722240084,-262.463206,0.00013668,2]
[339591742,1727722240093,-5880.471087,0.00013668,2]
[339591744,1727722240102,-5880.471087,0.00013668,2]
[339591746,1727722240111,-5880.471087,0.00013668,2]
[339591748,1727722240121,-5880.471087,0.00013668,2]
[339591750,1727722240130,-887.862241,0.00013668,2]
[339591752,1727722240140,-887.862241,0.00013668,2]
[339591754,1727722240150,-887.862241,0.00013668,2]
[339591757,1727722240160,-887.862241,0.00013668,2]
[339591759,1727722240169,-156.224915,0.00013668,2]
[339591761,1727722240179,-156.224915,0.00013668,2]
[339591763,1727722240189,-156.224915,0.00013668,2]
[339591765,1727722240199,-156.224915,0.00013668,2]
[339591767,1727722240208,-301.02467576,0.00013673,2]
[339591769,1727722240218,-500.37616175,0.00013673,2]
[339591772,1727722240230,-500.0,0.00013673,2]
[339591773,1727722240240,-500.0,0.00013673,2]
[339591775,1727722240250,-500.0,0.00013673,2]
[339591778,1727722240260,-500.0,0.00013673,2]
[339591780,1727722240269,-500.0,0.00013673,2]
[339591782,1727722240279,-299.51421811,0.00013673,2]
[339591784,1727722240288,-500.0,0.00013673,2]
[339591786,1727722240297,-500.45088228,0.00013673,2]
[339591788,1727722240307,-500.35441031,0.00013673,2]
[339591790,1727722240316,-500.0,0.00013673,2]
[339591792,1727722240325,-600.0,0.00013676,2]
[339591794,1727722240334,-2624.788593,0.00013679,2]
[339591796,1727722240344,-2624.788593,0.00013679,2]
[339591798,1727722240354,-981.025012,0.00013679,2]
[339591800,1727722240364,-981.025012,0.00013679,2]
[339591802,1727722240373,-339.209386,0.00013679,2]
[339591804,1727722240383,-339.209386,0.00013679,2]
[339591806,1727722240392,-339.209386,0.00013679,2]
[339591808,1727722240402,-339.209386,0.00013679,2]
[339591810,1727722240418,-151.0,0.00013679,2]
[339591812,1727722240427,-151.0,0.00013679,2]
[339591814,1727722240437,-5880.471087,0.00013679,2]
[339591817,1727722240447,-5880.471087,0.00013679,2]
[339591819,1727722240456,-5880.471087,0.00013679,2]
[339591821,1727722240466,-5880.471087,0.00013679,2]
[339591823,1727722240476,-887.862241,0.00013679,2]
[339591825,1727722240487,-887.862241,0.00013679,2]
[339591827,1727722240497,-887.862241,0.00013679,2]
[339591829,1727722240507,-887.862241,0.00013679,2]
[339591831,1727722240516,-156.224915,0.00013679,2]
[339591833,1727722240525,-156.224915,0.00013679,2]
[339591835,1727722240535,-156.224915,0.00013679,2]
[339591837,1727722240545,-156.224915,0.00013679,2]
[339591839,1727722240555,-74590.3217579,0.00013687,2]
[339591841,1727722240564,-155363.147468,0.00013687,2]
[339591843,1727722240574,-151.0,0.00013687,2]
[339591845,1727722240584,-1585.91749,0.00013687,2]
[339591847,1727722240594,-1585.91749,0.00013687,2]
[339591849,1727722240603,-151.0,0.00013687,2]
[339591851,1727722240613,-151.0,0.00013687,2]
[339591853,1727722240623,-204.39348,0.00013687,2]
[339591855,1727722240632,-204.39348,0.00013687,2]
[339591857,1727722240642,-151.0,0.00013687,2]
[339591859,1727722240654,-151.0,0.00013687,2]
[339591861,1727722240664,-151.0,0.00013687,2]
[339591863,1727722240674,-527.982006,0.00013687,2]
[339591866,1727722240683,-527.982006,0.00013687,2]
[339591868,1727722240692,-350.486018,0.00013687,2]
[339591870,1727722240702,-350.486018,0.00013687,2]
[339591872,1727722240712,-238.350069,0.00013687,2]
[339591874,1727722240722,-167.126911,0.00013687,2]
[339591876,1727722240732,-238.350069,0.00013687,2]
[339591878,1727722240743,-167.126911,0.00013687,2]
[339591880,1727722240753,-2252.379154,0.00013687,2]
[339591882,1727722240764,-2252.379154,0.00013687,2]
[339591884,1727722240773,-2601.492106,0.00013687,2]
[339591886,1727722240782,-2601.492106,0.00013687,2]
[339591888,1727722240792,-654.000408,0.00013687,2]
[339591890,1727722240801,-654.000408,0.00013687,2]
[339591892,1727722240811,-151.0,0.00013687,2]
[339591894,1727722240821,-1636.675814,0.00013687,2]
[339591896,1727722240830,-665.791252,0.00013687,2]
[339591898,1727722240840,-151.0,0.00013687,2]
[339591900,1727722240849,-1636.675814,0.00013687,2]
[339591902,1727722240860,-665.791252,0.00013687,2]
[339591904,1727722240870,-151.0,0.00013687,2]
[339591906,1727722240879,-277.721418,0.00013687,2]
[339591908,1727722240889,-277.721418,0.00013687,2]
[339591911,1727722240899,-151.0,0.00013687,2]
[339591913,1727722240909,-304.144973,0.00013687,2]
[339591915,1727722240922,-304.144973,0.00013687,2]
[339591917,1727722240931,-242.716183,0.00013687,2]
[339591919,1727722240941,-242.716183,0.00013687,2]
[339591921,1727722240951,-1543.065657,0.00013687,2]
[339591923,1727722240960,-1543.065657,0.00013687,2]
[339591925,1727722240970,-2632.734754,0.00013687,2]
[339591927,1727722240979,-2632.734754,0.00013687,2]
[339591929,1727722240989,-2624.788593,0.00013687,2]
[339591931,1727722240998,-2624.788593,0.00013687,2]
[339591933,1727722241008,-981.025012,0.00013687,2]
[339591935,1727722241018,-981.025012,0.00013687,2]
[339591937,1727722241028,-339.209386,0.00013687,2]
[339591939,1727722241037,-339.209386,0.00013687,2]
[339591941,1727722241047,-151.0,0.00013687,2]
[339591943,1727722241057,-5880.471087,0.00013687,2]
[339591945,1727722241067,-5880.471087,0.00013687,2]
[339591947,1727722241077,-887.862241,0.00013687,2]
[339591950,1727722241087,-887.862241,0.00013687,2]
[339591952,1727722241098,-156.224915,0.00013687,2]
[339591954,1727722241108,-156.224915,0.00013687,2]
[339591956,1727722241118,-151.0,0.00013688,2]
[339591958,1727722241128,-290.662758,0.00013688,2]
[339591960,1727722241138,-441.654386,0.00013688,2]
[339591962,1727722241148,-441.654386,0.00013688,2]
[339591964,1727722241160,-441.654386,0.00013688,2]
[339591966,1727722241170,-441.654386,0.00013688,2]
[339591969,1727722241180,-151.0,0.00013688,2]
[339591971,1727722241189,-151.0,0.00013688,2]
[339591973,1727722241199,-151.0,0.00013688,2]
[339591975,1727722241209,-151.0,0.00013688,2]
[339591977,1727722241218,-290.57144,0.00013688,2]
[339591979,1727722241228,-290.57144,0.00013688,2]
[339592002,1727722241452,-290.57144,0.00013688,2]
[339592004,1727722241463,-290.57144,0.00013688,2]
[339592006,1727722241473,-151.0,0.00013688,2]
[339592008,1727722241483,-151.0,0.00013688,2]
[339592010,1727722241495,-151.0,0.00013688,2]
[339592012,1727722241505,-151.0,0.00013688,2]
[339592014,1727722241515,-151.0,0.00013688,2]
[339592017,1727722241525,-151.0,0.00013688,2]
[339592019,1727722241536,-151.0,0.00013688,2]
[339592021,1727722241545,-151.0,0.00013688,2]
[339592023,1727722241555,-151.0,0.00013688,2]
[339592025,1727722241565,-151.0,0.00013688,2]
[339592027,1727722241575,-151.0,0.00013688,2]
[339592029,1727722241584,-151.0,0.00013688,2]
[339592031,1727722241595,-2235.328773,0.00013688,2]
[339592033,1727722241605,-2235.328773,0.00013688,2]
[339592035,1727722241615,-2235.328773,0.00013688,2]
[339592037,1727722241625,-2235.328773,0.00013688,2]
[339592039,1727722241635,-2235.328773,0.00013688,2]
[339592040,1727722241645,-2235.328773,0.00013688,2]
[339592041,1727722241654,-508.531592,0.00013688,2]
[339592042,1727722241664,-508.531592,0.00013688,2]
[339592043,1727722241674,-508.531592,0.00013688,2]
[339592044,1727722241684,-508.531592,0.00013688,2]
[339592045,1727722241694,-270.855815,0.00013688,2]
[339592046,1727722241704,-270.855815,0.00013688,2]
[339592047,1727722241715,-151.0,0.00013688,2]
[339592048,1727722241725,-151.0,0.00013688,2]
[339592049,1727722241736,-270.855815,0.00013688,2]
[339592050,1727722241747,-270.855815,0.00013688,2]
[339592051,1727722241757,-151.0,0.00013688,2]
[339592052,1727722241767,-300.771257,0.00013688,2]
[339592053,1727722241778,-346.314248,0.00013688,2]
[339592054,1727722241788,-346.314248,0.00013688,2]
[339592055,1727722241799,-346.314248,0.00013688,2]
[339592056,1727722241809,-346.314248,0.00013688,2]
[339592057,1727722241821,-1585.91749,0.00013688,2]
[339592059,1727722241831,-1585.91749,0.00013688,2]
[339592062,1727722241841,-151.0,0.00013688,2]
[339592064,1727722241851,-151.0,0.00013688,2]
[339592066,1727722241861,-204.39348,0.00013688,2]
[339592068,1727722241870,-204.39348,0.00013688,2]
[339592070,1727722241881,-151.0,0.00013688,2]
[339592072,1727722241891,-151.0,0.00013688,2]
[339592074,1727722241903,-151.0,0.00013688,2]
[339592076,1727722241913,-527.982006,0.00013688,2]
[339592078,1727722241925,-527.982006,0.00013688,2]
[339592080,1727722241935,-350.486018,0.00013688,2]
[339592082,1727722241945,-350.486018,0.00013688,2]
[339592084,1727722241955,-238.350069,0.00013688,2]
[339592086,1727722241966,-167.126911,0.00013688,2]
[339592088,1727722241975,-238.350069,0.00013688,2]
[339592090,1727722241985,-167.126911,0.00013688,2]
[339592092,1727722241996,-2252.379154,0.00013688,2]
[339592095,1727722242007,-2252.379154,0.00013688,2]
[339592097,1727722242016,-2601.492106,0.00013688,2]
[339592099,1727722242026,-2601.492106,0.00013688,2]
[339592101,1727722242036,-654.000408,0.00013688,2]
[339592103,1727722242046,-654.000408,0.00013688,2]
[339592105,1727722242056,-187.42306,0.00013688,2]
[339592107,1727722242066,-1636.675814,0.00013688,2]
[339592109,1727722242075,-665.791252,0.00013688,2]
[339592111,1727722242084,-151.0,0.00013688,2]
[339592113,1727722242093,-1636.675814,0.00013688,2]
[339592115,1727722242103,-665.791252,0.00013688,2]
[339592117,1727722242112,-151.0,0.00013688,2]
[339592119,1727722242122,-277.721418,0.00013688,2]
[339592121,1727722242132,-277.721418,0.00013688,2]
[339592123,1727722242141,-304.144973,0.00013688,2]
[339592125,1727722242152,-304.144973,0.00013688,2]
[339592127,1727722242161,-242.716183,0.00013688,2]
[339592129,1727722242172,-242.716183,0.00013688,2]
[339592131,1727722242182,-1543.065657,0.00013688,2]
[339592133,1727722242191,-1543.065657,0.00013688,2]
[339592136,1727722242201,-2632.734754,0.00013688,2]
[339592138,1727722242211,-2632.734754,0.00013688,2]
[339592140,1727722242220,-2624.788593,0.00013688,2]
[339592142,1727722242229,-2624.788593,0.00013688,2]
[339592144,1727722242240,-981.025012,0.00013688,2]
[339592146,1727722242249,-981.025012,0.00013688,2]
[339592148,1727722242259,-339.209386,0.00013688,2]
[339592151,1727722242268,-339.209386,0.00013688,2]
[339592154,1727722242278,-151.0,0.00013688,2]
[339592156,1727722242287,-5880.471087,0.00013688,2]
[339592159,1727722242297,-5880.471087,0.00013688,2]
[339592161,1727722242307,-887.862241,0.00013688,2]
[339592163,1727722242317,-887.862241,0.00013688,2]
[339592165,1727722242327,-156.224915,0.00013688,2]
[339592168,1727722242337,-156.224915,0.00013688,2]
[339592171,1727722242347,-31072.6294936,0.00013688,2]
[339592173,1727722242357,-441.654386,0.00013689,2]
[339592175,1727722242366,-441.654386,0.00013689,2]
[339592177,1727722242376,-151.0,0.00013689,2]
[339592179,1727722242386,-162.430967,0.00013689,2]
[339592181,1727722242396,-290.57144,0.00013689,2]
[339592183,1727722242406,-290.57144,0.00013689,2]
[339592186,1727722242416,-151.0,0.00013689,2]
[339592187,1727722242426,-151.0,0.00013689,2]
[339592189,1727722242436,-151.0,0.00013689,2]
[339592191,1727722242445,-151.0,0.00013689,2]
[339592192,1727722242455,-2235.328773,0.00013689,2]
[339592194,1727722242464,-2235.328773,0.00013689,2]
[339592195,1727722242475,-1585.91749,0.00013689,2]
[339592196,1727722242484,-1585.91749,0.00013689,2]
[339592197,1727722242504,-151.0,0.00013689,2]
[339592199,1727722242514,-151.0,0.00013689,2]
[339592201,1727722242523,-204.39348,0.00013689,2]
[339592203,1727722242533,-204.39348,0.00013689,2]
[339592204,1727722242543,-151.0,0.00013689,2]
[339592205,1727722242552,-181.90857,0.00013689,2]
[339592206,1727722242562,-151.0,0.00013689,2]
[339592207,1727722242572,-527.982006,0.00013689,2]
[339592208,1727722242582,-527.982006,0.00013689,2]
[339592209,1727722242592,-263.39393188,0.00013689,2]
[339592210,1727722242608,-87.09208612,0.00013689,2]
[339592211,1727722242618,-350.486018,0.00013689,2]
[339592212,1727722242629,-238.350069,0.00013689,2]
[339592213,1727722242639,-167.126911,0.00013689,2]
[339592214,1727722242649,-238.350069,0.00013689,2]
[339592215,1727722242659,-167.126911,0.00013689,2]
[339592216,1727722242669,-2116.26793584,0.00013689,2]
[339592217,1727722242681,-136.11121816,0.00013689,2]
[339592218,1727722242693,-2252.379154,0.00013689,2]
[339592219,1727722242704,-2601.492106,0.00013689,2]
[339592220,1727722242714,-2601.492106,0.00013689,2]
[339592221,1727722242724,-654.000408,0.00013689,2]
[339592222,1727722242734,-654.000408,0.00013689,2]
[339592223,1727722242747,-1636.675814,0.00013689,2]
[339592224,1727722242757,-665.791252,0.00013689,2]
[339592225,1727722242767,-151.0,0.00013689,2]
[339592226,1727722242777,-1636.675814,0.00013689,2]
[339592227,1727722242787,-665.791252,0.00013689,2]
[339592228,1727722242797,-151.0,0.00013689,2]
[339592230,1727722242806,-277.721418,0.00013689,2]
[339592232,1727722242816,-277.721418,0.00013689,2]
[339592234,1727722242826,-304.144973,0.00013689,2]
[339592236,1727722242836,-304.144973,0.00013689,2]
[339592238,1727722242846,-242.716183,0.00013689,2]
[339592240,1727722242855,-242.716183,0.00013689,2]